Workbook

Sheet INFO
A1: Intended use of this document Those responsible for the drafting of actual individual EPB standards shall - read and understand the following documents - prCEN/TS 16628 Basic Principles (in short "BP") - prCEN/TS 16629 Detailed Technical Rules (in short "DTR") - prEN 15603:2013 ("Overarching Standard", in short "OA")) - prCEN/TR 15615:2013 Technical report to overarching standard; - Prepare their individual EPB standard according to CEN rules, BP, DTR and OA - Prepare the accompanying technical report using the dedicated template - Prepare an accompanying XLS spreadsheet, to demonstrate inputs, output and calculation chain. This sample excel spreadsheet provides a template to help in this task.
A2: Why an Excel spradsheet? To demonstrate the validity and required data I/O for the calculation procedure defined in the standard: - list of all input needed --> sheet "Method_input" - list of intended output --> sheet "Method_output" - calculation sequence --> sheet "Method_calculation"
A3: The example is prepared for a simple procedure. The sheet calculation may need extensions such as: - using several columns when operating on arrays - refering to a subset of sheets input/calculation/output to describe a subroutine For complex tasks MACRO can be used. This sheet does not support calculation methods that take into account data in a different time-step than that that is being calculated. A version that allows taking into account values at previous time step will be developed.
A4: LIST OF AVAILABLE SHEETS
A5: Simplified_input_correlation Use this sheet to demontrate simplified input correlation, if any in your standard. Typically these correlations are defined in annex C of the standard. They provide the normal detailed input of a procedure, based on a simplified input data set.
A6: Product_descriptive_data Use this sheet to list product descriptive data (typically with case identifiers). Some examples of selection tables are given. The output from the selection tables (green cells) can be linked to the sheet "method_input" for use in the procedure.
A7: Product_tech_data Use this sheet to list product technical data (typically numerical values and data). Some examples are given with default that may be typically included in annex A of the standard. The output from the selection tables (green cells) can be linked to the sheet "method_input" for use in the procedure.
A8: Process_design_data Use this sheet to list system descriptive data (typically with case identifiers). Some examples of selection tables are given. The output from the selection tables (green cells) can be linked to the sheet "method_input" for use in the procedure.
A9: Data_catalogue_example It is an example of how a data catalogue can work, filtering the catalogue of product properties based on product descriptive data. You can optionally build a similar catalogue for products involved in your standard.
A10: Input_series Prepare in this sheet data for each time step if you want to test the procedure on more steps.
A11: Method_input List in this sheet all the input required for the calculation in one time step. THIS SHEET IS REQUIRED TO DEMONSTRATE THE REQUIRED DATA INPUT.
A12: Method_calculation Detail in this sheet your calculation procedure. There should be one calculation in one cell for each equation in the standard. THIS SHEET IS REQUIRED TO DEMONSTRATE THE CALCULATION PROCEDURE.
A13: Method_output List in this sheet all the intended output of the procedure. THIS SHEET IS REQUIRED TO DEMONSTRATE THE AVAILABLE DATA OUTPUT.
A14: Output_series Series alculation results are stored in this sheet. Calculation for each time step is launched in this sheet.

Sheet Simplified_input_correlation
A1: Create here a simulation of each correlation method in your Annex C
A4: Name | B4: Symbol | C4: Unit | D4: Value | E4: Range | F4: Formula ref. | G4: Formula | H4: Notes
A5: Input data
A6: Length of the building | B6: lL | C6: m | D6: 30 | E6: 4…100
A7: Width of the building | B7: lW | C7: m | D7: 20 | E7: 4…20
A8: Number of loors | B8: Nlev | C8: - | D8: 3 | E8: 1…10
A9: Floor heigth | B9: Hfl | C9: m | D9: 3.1 | E9: 2…5
A12: METHOD
A14: Detail all formulas
A15: Length of connection of radiators to vertical shafts | B15: lA | C15: m | D15: =0.55*Method_in*D7*D8 -> 990
A16: Length of vertical shafts | B16: lS | C16: m | D16: =0.025*Method_in*D7*D8*D9 -> 139.5
A17: Length of base collector | B17: lV | C17: m | D17: =2*Method_in+0.01625*Method_in*D7*D7 -> 255
A18: …
A20: Output data
A21: Length of shafts | B21: lS | C21: m | E21: 0...∞
A22: diameter of shafts | B22: dS | C22: m | E22: 0…0,2
A23: Length of base ring | B23: lB | C23: m | E23: 0...∞
A24: diameter of base ring | B24: dB | C24: m | E24: 0…0,2

Sheet Product_descriptive_data
A1: Example of descriptive data. In a simple structure, this can be connected directly to the "method_input" sheet where this data is required. In this example spreadsheet the "Method_input" is linked to the "data_catalogue".
A6: Product descriptive data (qualitative)
A8: Boiler type, condensing / non condensing
A9: 1 | B9: BLR_TYPE | C9: =INDEX(C11:C13,A9) -> BLR_TYPE_COND
A11: Condensing | C11: BLR_TYPE_COND
A12: Low temperature | C12: BLR_TYPE_LTMP
A13: Standard | C13: BLR_TYPE_STND
A16: Boiler use
A17: 1 | B17: BLR_USE | C17: =INDEX(C19:C22,A17) -> BLR_USE_H
A19: Heating | C19: BLR_USE_H
A20: Domestic hot water | C20: BLR_USE_W
A21: Cooling | C21: BLR_USE_C
A22: All | C22: BLR_USE_ALL
A25: Fuel
A26: 1 | B26: BLR_FUEL | C26: =INDEX(C28:C31,A26) -> BLR_FUEL_GAS
A28: Gas | C28: BLR_FUEL_GAS
A29: LPG | C29: BLR_FUEL_LPG
A30: Oil | C30: BLR_FUEL_OIL
A31: Biomass | C31: BLR_FUEL_BM
A34: CE Marking
A35: 1 | B35: BLR_CE | C35: =INDEX(C37:C38,A35) -> BLR_DATA_YES
A37: Boiler is marked CE | C37: BLR_DATA_YES
A38: Boiler is NOT marked CE | C38: BLR_DATA_NO
A41: Burner control type
A42: 1 | B42: BLR_CTRL_POW | C42: =INDEX(C44:C46,A42) -> BLR_CTRL_POW_ONOF
A44: Single stage control (ON-OFF) | C44: BLR_CTRL_POW_ONOF
A45: Stepped control | C45: BLR_CTRL_POW_STEP
A46: Modulating control | C46: BLR_CTRL_POW_MOD

Sheet Product_tech_data
A1: EXAMPLE OF A SHEET WITH DEFAULT INPUT Create here a simulation of each default data formula given in annex A of the standard. Optionally connect the selected values to the detailed input data selection sheet (detailed input)
A5: A.1.2.1 Generator output at full load; | B5: ФPn | C5: kW | D5: 60
A8: A.1.2.2 Generator efficiency at full load | B8: ηgnr,Pn | C8: % | D8: =+IF(D10<D29,D27+D28*LOG10(D10),D27+D28*LOG10(D29)) -> 88.5563025
A9: Known input
A10: Generator output at full load; | B10: ФPn | C10: kW | D10: =+D5 -> 60
A12: Base formula
A14: Data table
A15: Data | C15: c1 | D15: c2
A16: Unit | C16: % | D16: %
A17: Gas standard boiler | C17: 85 | D17: 2
A18: Gas low temperature boiler | C18: 88.5 | D18: 1.5
A19: Gas condensing boiler | C19: 92 | D19: 1
A20: Oil standard boiler | C20: 85 | D20: 2
A21: Oil low temperature boiler | C21: 88 | D21: 1.5
A22: Oil condensing boiler | C22: 92 | D22: 1
A23: My boiler with fixed value (c2 = 0) | C23: 91 | D23: 0
A24: Last boiler | C24: 50 | D24: 0
A25: Your selection
A26: Selection index | D26: 1
A27: c1 | C27: % | D27: =INDEX(C17:C24,D26) -> 85
A28: c2 | C28: % | D28: =INDEX(D17:D24,D26) -> 2
A29: Maximum kW | C29: kW | D29: 400
A31: A.1.2.3 Generator output at intermediate load; | B31: ФPint | C31: kW | D31: =+D5*0.3 -> 18
A34: A.1.2.4 Generator efficiency at intermediate load | B34: ηgnr,Pint | C34: % | D34: =+IF(D36<D55,D53+D54*LOG10(D36),D53+D54*LOG10(D55)) -> 91.66722688
A35: Known input
A36: Generator output at full load; | B36: ФPn | C36: kW | D36: =+D5 -> 60
A38: Base formula
A40: Data table
A41: Data | C41: c3 | D41: c4
A42: Unit | C42: % | D42: %
A43: Gas standard boiler | C43: 81.5 | D43: 3
A44: Gas low temperature boiler | C44: 89 | D44: 1.5
A45: Gas condensing boiler | C45: 98 | D45: 1
A46: Oil standard boiler | C46: 81 | D46: 2
A47: Oil low temperature boiler | C47: 89 | D47: 1.5
A48: Oil condensing boiler | C48: 96 | D48: 1
A49: My boiler with fixed value (c2 = 0) | C49: 87 | D49: 0
A50: Last boiler | C50: 50 | D50: 0
A51: Your selection
A52: Selection index | D52: 2
A53: c3 | C53: % | D53: =INDEX(C43:C50,D52) -> 89
A54: c4 | C54: % | D54: =INDEX(D43:D50,D52) -> 1.5
A55: Maximum kW | C55: kW | D55: 400
A58: A.1.2.5 Stand-by heat losses | B58: Фgen,ls,P0 | C58: kW | D58: =D60*(D77/100)*(D60^D78) -> 0.9304899127
A59: Known input
A60: Generator output at full load; | B60: ФPn | C60: kW | D60: =+D5 -> 60
A62: Base formula
A64: Data table
A65: Data | C65: c5 | D65: c6
A66: Unit | C66: - | D66: -
A67: Gas standard boiler | C67: 8.5 | D67: -0.4
A68: Gas low temperature boiler | C68: 6.5 | D68: -0.35
A69: Gas condensing boiler | C69: 4.8 | D69: -0.35
A70: Oil standard boiler | C70: 8.5 | D70: -0.4
A71: Oil low temperature boiler | C71: 6.5 | D71: -0.35
A72: Oil condensing boiler | C72: 4.8 | D72: -0.35
A73: My boiler (direct proportion to power if c6 set to 0) | C73: 1.5 | D73: 0
A74: Last boiler | C74: 2 | D74: 0
A75: Your selection
A76: Selection index | D76: 2
A77: c7 | C77: % | D77: =INDEX(C67:C74,D76) -> 6.5
A78: c8 | C78: % | D78: =INDEX(D67:D74,D76) -> -0.35
A81: A.1.2.6 Generator auxiliaries at full load | B81: Фaux,Pn | C81: W | D81: =D99+D100*(D85^D101) -> 321.1627101
A82: A.1.2.6 Generator auxiliaries at part load | B82: Фaux,Pint | C82: W | D82: =G99+G100*(D85^G101) -> 107.0542367
A83: A.1.2.6 Generator auxiliaries at no load | B83: Фaux,P0 | C83: W | D83: =J99+J100*(D85^J101) -> 15
A84: Known input
A85: Generator output at full load; | B85: ФPn | C85: kW | D85: =+D5 -> 60
A87: Base formula
A89: Data table | B89: Full power | E89: Intermediate power | H89: No load
A90: Data | B90: n | C90: c7 | D90: c8 | E90: n | F90: c7 | G90: c8 | H90: n | I90: c7 | J90: c8
A91: Unit | B91: - | C91: W | D91: W | F91: - | G91: . | I91: - | J91: .
A92: Gas atmospheric boiler | B92: 1 | C92: 40 | D92: 0.148 | E92: 1 | F92: 40 | G92: 0.148 | H92: 0 | I92: 15 | J92: 0
A93: Forced draught boiler | B93: 0.48 | C93: 0 | D93: 45 | E93: 0.48 | F93: 0 | G93: 15 | H93: 0.48 | I93: 15 | J93: 0
A94: Condensing boiler | B94: 0.48 | C94: 0 | D94: 45 | E94: 0.48 | F94: 0 | G94: 15 | H94: 0 | I94: 15 | J94: 0
A95: My boiler with fixed value (n = 1) | B95: 1 | C95: 0 | D95: 20 | E95: 1 | F95: 0 | G95: 10 | H95: 0 | I95: 10 | J95: 0
A96: Last boiler | B96: 1 | C96: 0 | D96: 20 | E96: 1 | F96: 0 | G96: 10 | H96: 0 | I96: 10 | J96: 0
A97: Your selection
A98: Selection index | D98: 2 | G98: =+D98 -> 2 | J98: =+G98 -> 2
A99: c7 | C99: W | D99: =INDEX(C92:C96,D98) -> 0 | F99: W | G99: =INDEX(F92:F96,G98) -> 0 | I99: W | J99: =INDEX(I92:I96,J98) -> 15
A100: c8 | C100: W | D100: =INDEX(D92:D96,D98) -> 45 | F100: W | G100: =INDEX(G92:G96,G98) -> 15 | I100: W | J100: =INDEX(J92:J96,J98) -> 0
A101: n | C101: - | D101: =INDEX(B92:B96,D98) -> 0.48 | F101: - | G101: =INDEX(E92:E96,G98) -> 0.48 | I101: - | J101: =INDEX(H92:H96,J98) -> 0.48
A104: A.1.2.1 Recoverable fraction of heat losses | B104: ФPn | C104: kW | D104: 60
A106: Efficiency correction factor at full load | B106: fcorr,Pn | C106: %/°C | D106: =+D124 -> 0.04
A107: Efficiency correction factor at part load | B107: fcorr,Pint | C107: %/°C | D107: =+D125 -> 0.05
A108: Known input
A109: Generator output at full load; | B109: ФPn | C109: kW | D109: =+D53 -> 89
A111: Base formula
A113: Data table
A114: Data | C114: fcorr,Pn | D114: fcorr,Pint
A115: Unit | C115: %/°C | D115: %/°C
A116: Standard boiler | C116: 0.04 | D116: 0.05
A117: Low temperature boiler | C117: 0.04 | D117: 0.05
A118: Gas condensing boiler | C118: 0.2 | D118: 0.2
A119: Oil condensing boiler | C119: 0.1 | D119: 0.1
A120: My boiler | C120: 0.04 | D120: 0.05
A121: Last boiler | C121: 0.04 | D121: 0.05
A122: Your selection
A123: Selection index | D123: 6
A124: c7 | C124: %/°C | D124: =INDEX(C116:C121,D123) -> 0.04
A125: c8 | C125: %/°C | D125: =INDEX(D116:D121,D123) -> 0.05
A128: Minimum boiler operating temperature | B128: θgnr,min | C128: °C | D128: =IF(Product_descriptive_data!C9=Product_descriptive_data!C13,50,0) -> 0
A130: Recoverable fraction of stand-by losses | B130: fgnr,env | C130: - | D130: 0.5
A132: generator average water temperature at test conditions for full load; | B132: θgnr,test,Pn | C132: °C | D132: 70
A134: generator average water temperature at test conditions for intermediate load; | B134: θgnr,test,Pint | C134: °C | D134: 50
A136: difference between mean boiler temperature and test room temperature in test conditions; | B136: Dθtest,P0 | C136: °C | D136: =IF(Product_descriptive_data!C43=Product_descriptive_data!C47,50,0) -> 50
A138: part of the auxiliary energy recovered | B138: frvd,aux | C138: - | D138: 0.75
A140: part of the nominal electrical power not transmitted to the distribution sub-system | B140: frbl,aux | C140: - | D140: 0.25
A145: generator output at full load;
A146: generator efficiency at full load;
A147: generator output at intermediate load;
A148: generator efficiency at intermediate load;
A149: stand-by heat loss at test temperature difference Dθi,test;
A150: power consumption of auxiliary devices at full load;
A151: power consumption of auxiliary devices at intermediate load;
A152: stand-by power consumption of auxiliary devices;
A153: minimum operating boiler temperature.
A154: Recoverable fraction of stand-by losses
A156: correction factor of full-load efficiency;
A157: correction factor of intermediate load efficiency;
A159: generator average water temperature at test conditions for full load;
A160: generator average water temperature at test conditions for intermediate load;
A161: difference between mean boiler temperature and test room temperature in test conditions;
A163: part of the auxiliary energy recovered
A164: part of the nominal electrical power not transmitted to the distribution sub-system

Sheet Process_design_data
A1: Example of process design data. In a simple structure, this can be connected directly to the "method_input" sheet where this data is required. In this example spreadsheet the "Method input" is linked to the detailed input.
A6: Process design data (qualitative)
A8: Boiler location (installation position)
A9: 1 | B9: BLR_LOC | C9: =INDEX(C11:C14,A9) -> BLR_LOC_INT | E9: qi,brm | F9: bbrm
E10: °C | F10: -
A11: Heated space | C11: BLR_LOC_INT | E11: 20 | F11: 0
A12: Unheated room | C12: BLR_LOC_UNH | E12: 5 | F12: 0.5
A13: Boiler room | C13: BLR_LOC_BLR | E13: 15 | F13: 0.7
A14: External | C14: BLR_LOC_EXT | E14: -10 | F14: 1
A15: Selected value | E15: =INDEX(E11:E14,$A$9) -> 20 | F15: =INDEX(F11:F14,$A$9) -> 0
A18: Boiler hydraulic connection
A19: 1 | B19: BLR_HCON | C19: =INDEX(C21:C24,A19) -> BLR_HCON_DIR
A21: Direct connection | C21: BLR_HCON_DIR
A22: Hydraulic decoupling (independent flow rate) | C22: BLR_HCON_DEC
A23: Direct, with condensate prevention pump | C23: BLR_HCON_NCP
A24: Heat exchanger | C24: BLR_HCON_HEX

Sheet Data_catalogue_example
A1: EXAMPLE OF A PRODUCT DATA CATALOGUE Product descriptive data is used to filter the actual catalogue. Unsuitable prioducts are indicated by "Non available" The desired product in the catalogue is then selected via the main list --> alla data is available with one click. NOTE: Default data are also part of the catalogue. This sample catalogue is connected to the "Method input" sheet. NOTE: This highlights the high importance of the user interface and of a correct data input structuring. | J1: DATA FOR EACH BOILER | W1: SELECTION OF BOILERS COMPATIBLE WITH THE QUALITATIVE DESCRIPTION
A4: Product descriptive data (qualitative)
A6: Boiler use
A7: 1 | C7: BLR_USE | D7: =INDEX(D9:D11,A7) -> BLR_USE_H
A9: Heating | D9: BLR_USE_H
A10: Domestic hot water | D10: BLR_USE_DHW
A11: All | D11: BLR_USE_ALL
A14: Fuel
A15: 1 | C15: BLR_FUEL | D15: =INDEX(D17:D19,A15) -> BLR_FUEL_GAS
A16: Values
A17: Gas | D17: BLR_FUEL_GAS
A18: Oil | D18: BLR_FUEL_OIL
A19: All | D19: BLR_FUEL_ALL
A22: Boiler type, condensing / non condensing
A23: 2 | C23: BLR_COND | D23: =INDEX(D25:D26,A23) -> BLR_COND_NO
A24: Values
A25: Condensing | D25: BLR_COND_YES
A26: Non condensing | D26: BLR_COND_NO
A29: Product technical data
A31: Generator output at full load; | E31: ФPn | F31: kW | G31: 60
A34: Boiler product data | C34: BLR_DATA | D34: =INDEX(D38:D49,C36) -> BLR_DATA_GAS_LT
C36: 2
A37: Values | W37: Display ? | X37: Condensing ? | Z37: Fuel ? | AB37: Condition 3? | AD37: Condition 4?
A38: =IF(W38,B38,"NOT COMPATIBLE") -> Gas, standard, minimum value | B38: Gas, standard, minimum value | D38: BLR_DATA_GAS_STD | W38: =AND(X38,Z38,AB38,AD38) -> TRUE | X38: =$D$23=Y38 -> TRUE | Y38: BLR_COND_NO | Z38: =OR($D$15=$D$19,$D$15=AA38) -> TRUE | AA38: BLR_FUEL_GAS | AB38: TRUE | AD38: TRUE
A39: =IF(W39,B39,"NOT COMPATIBLE") -> Gas, low temperature, minimum value | B39: Gas, low temperature, minimum value | D39: BLR_DATA_GAS_LT | W39: =AND(X39,Z39,AB39,AD39) -> TRUE | X39: =$D$23=Y39 -> TRUE | Y39: BLR_COND_NO | Z39: TRUE | AA39: BLR_FUEL_GAS | AB39: TRUE | AD39: TRUE
A40: NOT COMPATIBLE | B40: Gas, Condensing, minimum value | D40: BLR_DATA_GAS_CND | W40: FALSE | X40: FALSE | Y40: BLR_COND_YES | Z40: TRUE | AA40: BLR_FUEL_GAS | AB40: TRUE | AD40: TRUE
A41: NOT COMPATIBLE | B41: Oil, standard, minimum value | D41: BLR_DATA_OIL_STD | W41: FALSE | X41: TRUE | Y41: BLR_COND_NO | Z41: FALSE | AA41: BLR_FUEL_OIL | AB41: TRUE | AD41: TRUE
A42: NOT COMPATIBLE | B42: Oil, low temperature, minimum value | D42: BLR_DATA_OIL_LT | W42: FALSE | X42: TRUE | Y42: BLR_COND_NO | Z42: FALSE | AA42: BLR_FUEL_OIL | AB42: TRUE | AD42: TRUE
A43: NOT COMPATIBLE | B43: Oil, condensing, minimum value | D43: BLR_DATA_OIL_CND | W43: FALSE | X43: FALSE | Y43: BLR_COND_YES | Z43: FALSE | AA43: BLR_FUEL_OIL | AB43: TRUE | AD43: TRUE
A44: NOT COMPATIBLE | B44: Default national: 1 - old oil boiler | D44: BLR_DATA_NAT_1 | W44: FALSE | X44: TRUE | Y44: BLR_COND_NO | Z44: FALSE | AA44: BLR_FUEL_OIL | AB44: TRUE | AD44: TRUE
A45: Default national: 2 - old gas boiler | B45: Default national: 2 - old gas boiler | D45: BLR_DATA_NAT_2 | W45: TRUE | X45: TRUE | Y45: BLR_COND_NO | Z45: TRUE | AA45: BLR_FUEL_GAS | AB45: TRUE | AD45: TRUE
A46: Default national: 3 - new boiler | B46: Default national: 3 - new boiler | D46: BLR_DATA_NAT_3 | W46: TRUE | X46: TRUE | Y46: BLR_COND_NO | Z46: TRUE | AA46: BLR_FUEL_GAS | AB46: TRUE | AD46: TRUE
A47: Make 1 boiler 1 gas (catalogue) | B47: Make 1 boiler 1 gas (catalogue) | D47: BLR_DATA_CAT_01 | W47: TRUE | X47: TRUE | Y47: BLR_COND_NO | Z47: TRUE | AA47: BLR_FUEL_GAS | AB47: TRUE | AD47: TRUE
A48: NOT COMPATIBLE | B48: Make 1 boiler 2 oil (catalogue) | D48: BLR_DATA_CAT_02 | W48: FALSE | X48: TRUE | Y48: BLR_COND_NO | Z48: FALSE | AA48: BLR_FUEL_OIL | AB48: TRUE | AD48: TRUE
A49: Custom values | B49: Custom values | D49: BLR_DATA_USR | W49: TRUE | X49: TRUE | Y49: BLR_COND_NO | Z49: TRUE | AA49: BLR_FUEL_GAS | AB49: TRUE | AD49: TRUE
A52: System design data
A54: Localisation | C54: LOC | D54: =INDEX(D57:D60,C55) -> LOC_INT
C55: 1
A56: Values
A57: Heated space | D57: LOC_INT
A58: Unheated space | D58: LOC_UNH
A59: Boiler room | D59: LOC_BLR
A60: External | D60: LOC_EXT
A63: Operating conditions
A66: Direct connection
A67: Independent flow rate
A68: Heat exchanger
A69: Last option
A72: Description | C72: Variable TAG | D72: Option tag | E72: Symbol | F72: Unit | G72: Value | H72: Range | J72: =+D38 -> BLR_DATA_GAS_STD | K72: =+D39 -> BLR_DATA_GAS_LT | L72: =+D40 -> BLR_DATA_GAS_CND | M72: =+D41 -> BLR_DATA_OIL_STD | N72: =+D42 -> BLR_DATA_OIL_LT | O72: =+D43 -> BLR_DATA_OIL_CND | P72: =+D44 -> BLR_DATA_NAT_1 | Q72: =+D45 -> BLR_DATA_NAT_2 | R72: =+D46 -> BLR_DATA_NAT_3 | S72: =+D47 -> BLR_DATA_CAT_01 | T72: =+D48 -> BLR_DATA_CAT_02 | U72: =+D49 -> BLR_DATA_USR
A73: generator output at full load; | E73: ФPn | F73: kW | G73: =INDEX(J73:U73,1,$C$36) -> 60 | J73: =+$G$31 -> 60 | K73: 60 | L73: 60 | M73: 60 | N73: 60 | O73: 60 | P73: 60 | Q73: 60 | R73: 60 | S73: 45 | T73: 30 | U73: =+$G$31 -> 60
A74: Boiler type | G74: =INDEX(J74:U74,1,$C$36) -> BLR_COND_NO | J74: BLR_COND_NO | K74: BLR_COND_NO | L74: BLR_COND_YES | M74: BLR_COND_NO | N74: BLR_COND_NO | O74: BLR_COND_YES | P74: BLR_COND_NO | Q74: BLR_COND_NO | R74: BLR_COND_NO | S74: BLR_COND_NO | T74: BLR_COND_NO | U74: BLR_COND_YES
A75: Fuel type | G75: =INDEX(J75:U75,1,$C$36) -> BLR_FUEL_GAS | J75: BLR_FUEL_GAS | K75: BLR_FUEL_GAS | L75: BLR_FUEL_GAS | M75: BLR_FUEL_OIL | N75: BLR_FUEL_OIL | O75: BLR_FUEL_OIL | P75: BLR_FUEL_OIL | Q75: BLR_FUEL_GAS | R75: BLR_FUEL_GAS | S75: BLR_FUEL_GAS | T75: BLR_FUEL_OIL | U75: BLR_FUEL_GAS
A76: CE marking | G76: =INDEX(J76:U76,1,$C$36) -> BLR_CE_YES | J76: BLR_CE_YES | K76: BLR_CE_YES | L76: BLR_CE_YES | M76: BLR_CE_YES | N76: BLR_CE_YES | O76: BLR_CE_YES | P76: BLR_CE_YES | Q76: BLR_CE_YES | R76: BLR_CE_YES | S76: BLR_CE_YES | T76: BLR_CE_NO | U76: BLR_CE_YES
A77: Limited power | E77: ФPn,ltd | F77: kW | J77: =IF(J73>400,400,J73) -> 60 | K77: =IF(K73>400,400,K73) -> 60 | L77: 60 | M77: 60 | N77: 60 | O77: 60 | P77: 60 | Q77: 60 | R77: 60 | S77: 45 | T77: 30 | U77: 60
E78: C1 | F78: % | J78: 85 | K78: 88 | L78: 94 | M78: 85 | N78: 88 | O78: 94 | P78: 92 | Q78: 91 | R78: 93
E79: C2 | F79: % | J79: 2 | K79: 1.5 | L79: 1 | M79: 2 | N79: 1.5 | O79: 1 | P79: 0 | Q79: 0 | R79: 0
A80: generator efficiency at full load; | E80: ηgnr,Pn | F80: % | G80: =INDEX(J80:U80,1,$C$36) -> 90.66722688 | J80: =J78+J79*LOG10(J77) -> 88.5563025 | K80: =K78+K79*LOG10(K77) -> 90.66722688 | L80: 95.77815125 | M80: 88.5563025 | N80: 90.66722688 | O80: 95.77815125 | P80: 92 | Q80: 91 | R80: 93 | S80: 94 | T80: 92 | U80: 93
A81: generator output at intermediate load; | E81: ФPint | F81: kW | G81: =INDEX(J81:U81,1,$C$36) -> 18 | J81: =+J73*0.3 -> 18 | K81: =+K73*0.3 -> 18 | L81: 18 | M81: =+M73*0.3 -> 18 | N81: =+N73*0.3 -> 18 | O81: =+O73*0.3 -> 18 | P81: 18 | Q81: 18 | R81: 18 | S81: 13.5 | T81: 9 | U81: 18
E82: C3 | F82: % | J82: 81.5 | K82: 89 | L82: 98 | M82: 81.5 | N82: 89 | O82: =98/1.05 -> 93.33333333 | P82: 90 | Q82: 89 | R82: 91
E83: C4 | F83: % | J83: 3 | K83: 1.5 | L83: 1 | M83: 3 | N83: 1.5 | O83: =1/1.05 -> 0.9523809524 | P83: 0 | Q83: 0 | R83: 0
A84: generator efficiency at intermediate load; | E84: ηgnr,Pint | F84: % | G84: =INDEX(J84:U84,1,$C$36) -> 91.66722688 | J84: =J82+J83*LOG10(J77) -> 86.83445375 | K84: =K82+K83*LOG10(K77) -> 91.66722688 | L84: 99.77815125 | M84: 86.83445375 | N84: 91.66722688 | O84: 95.02681071 | P84: 90 | Q84: 89 | R84: 91 | S84: 94 | T84: 92 | U84: 93
E85: C5 | F85: % | J85: 8.5 | K85: 5 | L85: 4.8 | M85: 8.5 | N85: 5 | O85: 4.8 | P85: 5 | Q85: 5 | R85: 5
E86: C6 | F86: % | J86: -0.4 | K86: -0.35 | L86: -0.35 | M86: -0.4 | N86: -0.35 | O86: -0.35 | P86: -0.35 | Q86: -0.35 | R86: -0.35
A87: stand-by heat loss at test temperature difference Dθi,test; | E87: Фgnr,ls,P0 | F87: kW | G87: =INDEX(J87:U87,1,$C$36) -> 0.7157614713 | J87: =+J73*(J85/100)*(J73^J86) -> 0.9915387147 | K87: 0.7157614713 | L87: 0.6871310125 | M87: =+M73*(M85/100)*(M73^M86) -> 0.9915387147 | N87: =+N73*(N85/100)*(N73^N86) -> 0.7157614713 | O87: =+O73*(O85/100)*(O73^O86) -> 0.6871310125 | P87: 0.7157614713 | Q87: 0.7157614713 | R87: 0.7157614713 | S87: 0.5 | T87: 0.6 | U87: 0.4
E88: C7 | F88: W | J88: 0 | K88: 0 | L88: 0 | M88: 0 | N88: 0 | O88: 0 | P88: 0 | Q88: 0 | R88: 0
E89: C8 | F89: W | J89: 45 | K89: 45 | L89: 45 | M89: 45 | N89: 45 | O89: 45 | P89: 45 | Q89: 45 | R89: 45
E90: n | F90: - | J90: 0.48 | K90: 0.48 | L90: 0.48 | M90: 0.48 | N90: 0.48 | O90: 0.48 | P90: 0.48 | Q90: 0.48 | R90: 0.48
A91: power consumption of auxiliary devices at full load; | E91: Paux,gnr,Pn | F91: kW | G91: =INDEX(J91:U91,1,$C$36) -> 0.3211627101 | J91: =(+J88+J89*J73^J90)/1000 -> 0.3211627101 | K91: 0.3211627101 | L91: 0.3211627101 | M91: =(+M88+M89*M73^M90)/1000 -> 0.3211627101 | N91: =(+N88+N89*N73^N90)/1000 -> 0.3211627101 | O91: =(+O88+O89*O73^O90)/1000 -> 0.3211627101 | P91: 0.3211627101 | Q91: 0.3211627101 | R91: 0.3211627101 | S91: 0.3 | T91: 0.4 | U91: 0.6
E92: C7 | F92: W | J92: 0 | K92: 0 | L92: 0 | M92: 0 | N92: 0 | O92: 0 | P92: 0 | Q92: 0 | R92: 0
E93: C8 | F93: W | J93: 15 | K93: 15 | L93: 15 | M93: 15 | N93: 15 | O93: 15 | P93: 15 | Q93: 15 | R93: 15
E94: n | F94: - | J94: 0.48 | K94: 0.48 | L94: 0.48 | M94: 0.48 | N94: 0.48 | O94: 0.48 | P94: 0.48 | Q94: 0.48 | R94: 0.48
A95: power consumption of auxiliary devices at intermediate load; | E95: Paux,gnr,Pint | F95: kW | G95: =INDEX(J95:U95,1,$C$36) -> 0.06006508023 | J95: =(+J92+J93*J81^J94)/1000 -> 0.06006508023 | K95: 0.06006508023 | L95: 0.06006508023 | M95: =(+M92+M93*M81^M94)/1000 -> 0.06006508023 | N95: =(+N92+N93*N81^N94)/1000 -> 0.06006508023 | O95: =(+O92+O93*O81^O94)/1000 -> 0.06006508023 | P95: 0.06006508023 | Q95: 0.06006508023 | R95: 0.06006508023 | S95: 0.1 | T95: 0.07 | U95: 0.05
E96: C7 | F96: W | J96: 15 | K96: 15 | L96: 15 | M96: 15 | N96: 15 | O96: 15 | P96: 15 | Q96: 15 | R96: 15
E97: C8 | F97: W | J97: 0 | K97: 0 | L97: 0 | M97: 0 | N97: 0 | O97: 0 | P97: 0 | Q97: 0 | R97: 0
E98: n | F98: - | J98: 0 | K98: 0 | L98: 0 | M98: 0 | N98: 0 | O98: 0 | P98: 0 | Q98: 0 | R98: 0
A99: stand-by power consumption of auxiliary devices; | E99: Paux,gnr,P0 | F99: kW | G99: =INDEX(J99:U99,1,$C$36) -> 0.015 | J99: =(+J96+J97*J85^J98)/1000 -> 0.015 | K99: 0.015 | L99: 0.015 | M99: 0.015 | N99: 0.015 | O99: 0.015 | P99: 0.015 | Q99: 0.015 | R99: 0.015 | S99: 0 | T99: 0 | U99: 0
A100: auxiliary power when the generation system is inactive | E100: Paux,off | F100: kW | G100: =INDEX(J100:U100,1,$C$36) -> 0 | J100: 0 | K100: 0 | L100: 0 | M100: 0 | N100: 0 | O100: 0 | P100: 0 | Q100: 0 | R100: 0 | S100: 0 | T100: 0 | U100: 0
A101: minimum operating boiler temperature. | E101: θgnr,min | F101: °C | G101: =INDEX(J101:U101,1,$C$36) -> 30 | J101: 50 | K101: 30 | L101: 0 | M101: 50 | N101: 30 | O101: 0 | P101: 50 | Q101: 50 | R101: 50 | S101: 50 | T101: 50 | U101: 50
A102: Recoverable fraction of stand-by losses | E102: fgnr,env | F102: - | G102: =INDEX(J102:U102,1,$C$36) -> 0.5 | J102: 0.5 | K102: 0.5 | L102: 0.5 | M102: 0.5 | N102: 0.5 | O102: 0.5 | P102: 0.5 | Q102: 0.5 | R102: 0.5 | S102: 0.5 | T102: 0.5 | U102: 0.5
A104: correction factor of full-load efficiency; | E104: fcorr,Pn | F104: - | G104: =INDEX(J104:U104,1,$C$36) -> 0.04 | J104: 0.04 | K104: 0.04 | L104: 0.2 | M104: 0.04 | N104: 0.04 | O104: 0.2 | P104: 0.04 | Q104: 0.04 | R104: 0.1 | S104: 0.04 | T104: 0.04 | U104: 0.04
A105: correction factor of intermediate load efficiency; | E105: fcorr,Pint | F105: - | G105: =INDEX(J105:U105,1,$C$36) -> 0.05 | J105: 0.05 | K105: 0.05 | L105: 0.2 | M105: 0.05 | N105: 0.05 | O105: 0.2 | P105: 0.05 | Q105: 0.05 | R105: 0.05 | S105: 0.05 | T105: 0.05 | U105: 0.05
A107: generator average water temperature at test conditions for full load; | E107: θgnr,test,Pn | F107: °C | G107: =INDEX(J107:U107,1,$C$36) -> 70 | J107: 70 | K107: 70 | L107: 70 | M107: 70 | N107: 70 | O107: 70 | P107: 70 | Q107: 70 | R107: 70 | S107: 70 | T107: 70 | U107: 70
A108: generator average water temperature at test conditions for intermediate load; | E108: θgnr,test,Pint | F108: °C | G108: =INDEX(J108:U108,1,$C$36) -> 40 | J108: 50 | K108: 40 | L108: 30 | M108: 50 | N108: 40 | O108: 30 | P108: 50 | Q108: 50 | R108: 50 | S108: 50 | T108: 50 | U108: 50
A109: difference between mean boiler temperature and test room temperature in test conditions; | E109: Dθtest,P0 | F109: °C | G109: =INDEX(J109:U109,1,$C$36) -> 50 | J109: 50 | K109: 50 | L109: 50 | M109: 50 | N109: 50 | O109: 50 | P109: 50 | Q109: 50 | R109: 50 | S109: 50 | T109: 50 | U109: 50
A111: part of the auxiliary energy recovered | E111: frvd,aux | F111: - | G111: =INDEX(J111:U111,1,$C$36) -> 0.75 | J111: 0.75 | K111: 0.75 | L111: 0.75 | M111: 0.75 | N111: 0.75 | O111: 0.75 | P111: 0.75 | Q111: 0.75 | R111: 0.75 | S111: 0.75 | T111: 0.75 | U111: 0.75
A112: part of the nominal electrical power not transmitted to the distribution sub-system | E112: frbl,aux | F112: - | G112: =INDEX(J112:U112,1,$C$36) -> 0.25 | J112: 0.25 | K112: 0.25 | L112: 0.25 | M112: 0.25 | N112: 0.25 | O112: 0.25 | P112: 0.25 | Q112: 0.25 | R112: 0.25 | S112: 0.25 | T112: 0.25 | U112: 0.25
A117: System design data
A118: Installation room temperature; | E118: qi,brm | F118: °C | G118: 15
A119: Temperature reduction factor of install. room | E119: bbrm | F119: - | G119: 0.7

Sheet INFO
A1: Draft spreadsheet, according to template for all EPB standards
A2: Concerns EPB standard:
A3: ISO/DIS 6946, Building components and building elements — Thermal resistance and thermal transmittance— Calculation methods
A4: Produced by the Project Leader for the preparation of this standard
A6: DISCLAIMER:
A7: · This spreadsheet has been developed in the framework of the preparation and revision of the set of EN or ISO standards on the energy performance of buildings, to support the European "Energy Performance of Buildings Directive" recast (EPBD-recast, directive 2010/31/EU).
A8: · It is meant for use by CEN and ISO technical committee(s) and the working group(s) working on the preparation or revision of the EPB-standard to which this spreadsheet applies. The spreadsheet supports checking that all equations in the developed standard are consistent and can be linked with other relevant standards. It is not meant to perform a full or partial energy performance calculation.
A9: · The spreadsheet supports the expert user of the standards, in particular those who want to review the content of the standard and those who want to translate the standard to a software, to understand the correct interpretation of the equations and calculation steps in the standard.
A10: · Although it has been developed with care, neither the technical committee(s), nor the working group(s) and experts related to the EPB- standard to which this spreadsheet applies warrant that the calculations and procedures in this spreadsheet are free of errors. The technical committees as well as the working groups and their respective members expressly disclaim any liability or responsibility arising from use of this spreadsheet, or any consequences thereof. Any responsibility arising from the use of this spreadsheet lies with the user.
A11: DRAFT VERSION:
A12: · As long as the associated EPB standard or any of the other EPB standards to which it is directly linked are in a draft stage, this spreadsheet is also a draft version only.
A13: WARNINGS:
A14: · Note that the spreadsheet may not allow testing all calculation options that are possible according to the standard to which it applies. This remark applies in particular but not only to limitations on the number instances of a variable that can be considered.
A15: · In case of differences, the standard should be regarded as the reference, not the spreadsheet. However, during the standard's drafting phase, shortcomings in the draft standard may have been detected and dealt with in the spreadsheets (ideally, such differences are marked).
A16: · Note also that these spreadsheets are purely intended for testing and demonstration and therefore not aiming to be user friendly or to be protected against wrong or improper use.
A17: TERMS OF USE:
A18: · The user is not allowed to redistribute a modified version of this spreadsheet.
A19: · The author(s) would appreciate your feed back on the spreadsheet via the comment sheets for the associated draft standard to be prepared by the national standards bodies during enquiry of the draft standard(s),
A22: SCOPE OF THIS SPREADSHEET:
A23: THIS SPREADSHEET PROVIDES ONE CALCULATION EXAMPLE INCLUDING A BRIDGED LAYER
A24: THE OUTPUT IS SUITED TO THE INPUT FOR e.g.:
A25: - CALCULATION OF THE OVERALL (SEASONAL) THERMAL TRANSMITTANCE OF A BUILDING
A26: - CALCULATION OF ENERGY NEEDS FOR HEATING AND COOLING (MONTHLY METHOD)
A27: - CALCULATION OF ENERGY NEEDS FOR HEATING AND COOLING (HOURLY METHOD)
A29: Intended use of this document Those responsible for the drafting of actual individual EPB standards shall - read and understand the following documents - EN/TS 16628 Basic Principles (in short "BP") - EN/TS 16629 Detailed Technical Rules (in short "DTR") - Most recent draft of ISO 52000-1 cq EN 15603 ("Overarching Standard", in short "OA")) - Most recent draft of ISO/TR 52000-2 cq EN/TR 15615 Technical report to overarching standard; - Prepare their individual EPB standard according to CEN rules, BP, DTR and OA - Prepare the accompanying technical report using the dedicated template - Prepare an accompanying XLS spreadsheet, to demonstrate inputs, output and calculation chain. This sample excel spreadsheet provides a template to help in this task.
A30: Why an Excel spreadsheet? To demonstrate the validity and required data I/O for the calculation procedure defined in the standard: - list of all input needed --> sheet "Method_input" - list of intended output --> sheet "Method_output" - calculation sequence --> sheet "Method_calculation"
A31: Method_input List in this sheet all the input required for the calculation in one time step. THIS SHEET IS REQUIRED TO DEMONSTRATE THE REQUIRED DATA INPUT.
A32: Method_calculation Detail in this sheet your calculation procedure. There should be one calculation in one cell for each equation in the standard. THIS SHEET IS REQUIRED TO DEMONSTRATE THE CALCULATION PROCEDURE.
A33: Method_output List in this sheet all the intended output of the procedure. THIS SHEET IS REQUIRED TO DEMONSTRATE THE AVAILABLE DATA OUTPUT.

Sheet Method_input
A1: THIS IS A MANDATORY SHEET All input data for the method shall be listed here. In the simplest version, values for data input in GREEN may be inserted manually. Numbers in ORANGE will be automatically calculated, changing the data enetered here will result in a wrong result. Varying data (green background) can be fed from the "input_series" sheet. In this sample data sheet, product data (blue background) is linked to a sample catalogue built in the "Detailed_input" sheet
N2: Rsi | O2: Rse
A4: Wall - Masonry - Partial Cavity Fill
C5: Material 1 of the layer | E5: Material 2 of the layer | H5: Notes
A6: Layer | B6: d (m) | C6: l-value (W/m·K) | D6: R-value (m²K/W) | E6: l-value (W/m·K) | F6: R-value (m²K/W) | G6: Fraction
A7: internal surface | D7: 0.13
A8: 1 Plasterboard | B8: 0.012 | C8: 0.21
A9: 2 XPS board between battens | B9: 0.075 | C9: 0.035 | E9: 0.13 | G9: 0.118
A10: 3 Caviy unventilated | B10: 0.015 | D10: 0.17
A11: 4 Concrete block (dense) | B11: 0.1 | C11: 1.63
A12: 5 Insulated cavity + wall ties | B12: 0.05 | C12: 0.045
A13: 6 Brick outer leaf | B13: 0.105 | C13: 0.77
A14: external surface | D14: 0.04
A18: U-value Corrections | C18: Air gaps level | D18: number per m² | E18: cross-sectional area (m²) | F18: l-value (W/m·K)
A19: Air Gaps in layer 2 | C19: 1
A20: Wall Ties in layer 5 | D20: 2.5 | E20: =80*0.000001 -> 8e-05 | F20: 17
A23: Table 4 – Identifiers for geometric characteristics
A24: Name | B24: Symbol | C24: Software name | D24: Unit | E24: Value | F24: Range | G24: Origin | H24: Varying
A25: area | B25: A | C25: A | D25: m2 | F25: 0...∞ | H25: No
A26: thickness of material layer | B26: d | C26: d | D26: m | F26: 0...∞ | H26: No
A28: Table 5 – Identifiers for thermal characteristics of a building component
A29: Name | B29: Symbol | C29: Software name | D29: Unit | E29: Value | F29: Range | G29: Origin | H29: Varying
A30: design thermal conductivity | B30: l | C30: lambda | D30: W/(m×K) | F30: 0...10 | G30: ISO 10456 | H30: No
A32: Table 6 – Identifiers for tabulated and conventional values
A33: Name | B33: Symbol | C33: Software name | D33: Unit | E33: Value | F33: Range | G33: Origin | H33: Varying
A34: external surface resistance | B34: Rse | C34: R_s_e | D34: m2×K/W | E34: 0,04 | F34: N/A | G34: Table 8 and Annex C | H34: Yes
A35: internal surface resistance | B35: Rsi | C35: R_s_i | D35: m2×K/W | E35: - | F35: 0.1…0,17 | G35: Table 8 and Annex C | H35: Yes
A36: thermal resistance of unheated spaces | B36: Ru | C36: R_u | D36: m2×K/W | F36: 0,06…0.3 | G36: Table 10 | H36: Yes
A37: thermal resistance of air layer | B37: Ra | C37: R_a | D37: m2×K/W | F37: N/A | G37: Annex D | H37: Yes
A38: thermal resistance of unventilated air layer | B38: Rtot;u | C38: R_tot_u | D38: m2×K/W | E38: - | F38: 0…0,23 | G38: Table 9 | H38: Yes
A39: thermal resistance of ventilated air layer | B39: Rtot;ve | C39: R_tot_ve | D39: m2×K/W | E39: - | G39: Annex D | H39: No
A40: total thermal resistance of a component | B40: Rtot;c | C40: R_tot_c | D40: m2×K/W | E40: - | G40: 6.7.2.2 | H40: No
A41: radiative coefficient for a black-body surface | B41: hr0 | C41: h_r0 | D41: W/(m2×K) | E41: 5.1 | F41: - | G41: Annex D | H41: Yes
A42: convective coefficient; internal surface | B42: hc;i | C42: h_c_i | D42: W/(m2×K) | E42: - | F42: 0,7…5,0 | G42: Annex C | H42: Yes
A43: convective coefficient; external surface | B43: hc;e | C43: h_c_i | D43: W/(m2×K) | E43: 20 | F43: - | G43: Annex C | H43: No
A44: radiative coefficient; internal surface | B44: hr;i | C44: h_r_i | D44: W/(m2×K) | E44: 4.59 | F44: - | G44: Annex D | H44: No
A45: radiative coefficient; external surface | B45: hr;e | C45: h_r_e | D45: W/(m2×K) | E45: 5.13 | F45: - | G45: Annex D | H45: No
A46: hemispherical emissivity of surface | B46: ε | C46: epsilon | D46: - | E46: 0.9 | F46: - | G46: Annex D | H46: No
A48: Table 7 – Identifiers for constants
A49: Name | B49: Symbol | C49: Software name | D49: Unit | E49: Value | F49: Range | G49: Origin | H49: Varying
A50: Stefan-Boltzmann constant | B50: s | C50: sigma | D50: W/(m2K4) | E50: 5.67x10-8 | F50: - | H50: No

Sheet Method_calculation
A1: THIS IS A MANDATORY SHEET One time step calculation shall be described here. For each calculation step (= 1 row) data for the formula in column D shall be taken from the "Method_input" sheet or previous calculation steps. Include in the column "Formula ref" its number in the standard text. The example is based on EN 15316-4-1:2008 Copy and paste a copy of the equation into column "Formula" Use the column note for information on the calculation
A3: Calculation of Thermal Resistance of each layer
A4: Description | B4: Symbol | C4: Unit | D4: Value | E4: Formula ref | F4: Formula | H4: Notes
A5: Heat flow path a
A6: Thermal resistance of internal surface | B6: Rsi | C6: m²K/W | D6: =Method_input!D7 -> 0.13
A7: Thermal resistance of layer 1 | B7: R1 | C7: m²K/W | D7: =IF(Method_input!C8="",Method_input!D8,Method_input!B8/Method_input!C8) -> 0.05714285714 | E7: Formula (3)
A8: Thermal resistance of layer 2 | B8: R2 | C8: m²K/W | D8: =IF(Method_input!C9="",Method_input!D9,Method_input!B9/Method_input!C9) -> 2.142857143 | E8: Formula (3)
A9: Thermal resistance of layer 3 | B9: R3 | C9: m²K/W | D9: =IF(Method_input!C10="",Method_input!D10,Method_input!B10/Method_input!C10) -> 0.17 | E9: Formula (3)
A10: Thermal resistance of layer 4 | B10: R4 | C10: m²K/W | D10: =IF(Method_input!C11="",Method_input!D11,Method_input!B11/Method_input!C11) -> 0.06134969325 | E10: Formula (3)
A11: Thermal resistance of layer 5 | B11: R5 | C11: m²K/W | D11: =IF(Method_input!C12="",Method_input!D12,Method_input!B12/Method_input!C12) -> 1.111111111 | E11: Formula (3)
A12: Thermal resistance of layer 6 | B12: R6 | C12: m²K/W | D12: =IF(Method_input!C13="",Method_input!D13,Method_input!B13/Method_input!C13) -> 0.1363636364 | E12: Formula (3)
A13: Thermal resistance of external surface | B13: Rse | C13: m²K/W | D13: =Method_input!D14 -> 0.04
A14: Total thermal resistance via heat flow path a | B14: Rtot;a | C14: m²K/W | D14: =SUM(D6:D13) -> 3.848824441 | E14: Formula (4)
A15: Heat flow path b
A16: Thermal resistance of internal surface | B16: Rsi | C16: m²K/W | D16: =Method_input!D7 -> 0.13
A17: Thermal resistance of layer 1 | B17: R1 | C17: m²K/W | D17: =IF(Method_input!E8<>"",Method_input!B8/Method_input!E8,IF(Method_input!F7<>"",Method_input!F8,IF(Method_input!C8<>"",Method_input!B8/Method_input!C8,Method_input!D8))) -> 0.05714285714 | E17: Formula (3)
A18: Thermal resistance of layer 2 | B18: R2 | C18: m²K/W | D18: =IF(Method_input!E9<>"",Method_input!B9/Method_input!E9,IF(Method_input!F8<>"",Method_input!F9,IF(Method_input!C9<>"",Method_input!B9/Method_input!C9,Method_input!D9))) -> 0.5769230769 | E18: Formula (3)
A19: Thermal resistance of layer 3 | B19: R3 | C19: m²K/W | D19: =IF(Method_input!E10<>"",Method_input!B10/Method_input!E10,IF(Method_input!F9<>"",Method_input!F10,IF(Method_input!C10<>"",Method_input!B10/Method_input!C10,Method_input!D10))) -> 0.17 | E19: Formula (3)
A20: Thermal resistance of layer 4 | B20: R4 | C20: m²K/W | D20: =IF(Method_input!E11<>"",Method_input!B11/Method_input!E11,IF(Method_input!F10<>"",Method_input!F11,IF(Method_input!C11<>"",Method_input!B11/Method_input!C11,Method_input!D11))) -> 0.06134969325 | E20: Formula (3)
A21: Thermal resistance of layer 5 | B21: R5 | C21: m²K/W | D21: =IF(Method_input!E12<>"",Method_input!B12/Method_input!E12,IF(Method_input!F11<>"",Method_input!F12,IF(Method_input!C12<>"",Method_input!B12/Method_input!C12,Method_input!D12))) -> 1.111111111 | E21: Formula (3)
A22: Thermal resistance of layer 6 | B22: R6 | C22: m²K/W | D22: =IF(Method_input!E13<>"",Method_input!B13/Method_input!E13,IF(Method_input!F12<>"",Method_input!F13,IF(Method_input!C13<>"",Method_input!B13/Method_input!C13,Method_input!D13))) -> 0.1363636364 | E22: Formula (3)
A23: Thermal resistance of external surface | B23: Rse | C23: m²K/W | D23: =Method_input!D14 -> 0.04
A24: Total thermal resistance via heat flow path b | B24: Rtot;b | C24: m²K/W | D24: =SUM(D16:D23) -> 2.282890375 | E24: Formula (4)
A25: Upper limit of total thermal resistance | B25: Rtot;upper | C25: m²K/W | D25: =1/((1-Method_input!G9)/D14+Method_input!G9/D24) -> 3.560622836 | E25: Formula (6)
A26: Using equivalent thermal resistance for each layer (for lower limit)
A27: Thermal resistance of internal surface | B27: Rsi | C27: m²K/W | D27: =Method_input!D7 -> 0.13
A28: Equivalent thermal resistance of layer 1 | B28: R1 | C28: m²K/W | D28: =IF(Method_input!G8="",D7,1/((1-Method_input!G8)/D7+Method_input!G8/D17)) -> 0.05714285714 | E28: Formula (3) | H28: Formula (7) for a bridged layer, Formula(3) for an unbridged layer
A29: Equivalent thermal resistance of layer 2 | B29: R2 | C29: m²K/W | D29: =IF(Method_input!G9="",D8,1/((1-Method_input!G9)/D8+Method_input!G9/D18)) -> 1.623025319 | E29: Formula (3)
A30: Equivalent thermal resistance of layer 3 | B30: R3 | C30: m²K/W | D30: =IF(Method_input!G10="",D9,1/((1-Method_input!G10)/D9+Method_input!G10/D19)) -> 0.17 | E30: Formula (7)
A31: Equivalent thermal resistance of layer 4 | B31: R4 | C31: m²K/W | D31: =IF(Method_input!G11="",D10,1/((1-Method_input!G11)/D10+Method_input!G11/D20)) -> 0.06134969325 | E31: Formula (3)
A32: Equivalent thermal resistance of layer 5 | B32: R5 | C32: m²K/W | D32: =IF(Method_input!G12="",D11,1/((1-Method_input!G12)/D11+Method_input!G12/D21)) -> 1.111111111 | E32: Formula (3)
A33: Equivalent thermal resistance of layer 6 | B33: R6 | C33: m²K/W | D33: =IF(Method_input!G13="",D12,1/((1-Method_input!G13)/D12+Method_input!G13/D22)) -> 0.1363636364 | E33: Formula (3)
A34: Thermal resistance of external surface | B34: Rse | C34: m²K/W | D34: =Method_input!D14 -> 0.04
A35: Lower limit of total thermal resistance | B35: Rtot;lower | C35: m²K/W | D35: =SUM(D27:D34) -> 3.328992617 | E35: Formula (4)
A36: Ratio of the upper limit of thermal resistance to the lower limit of thermal resistance | D36: =D25/D35 -> 1.069579673 | H36: Check that ratio <= 1.5
A38: Total thermal resistance of component | B38: Rtot | C38: m²K/W | D38: =(0.5*(D35+D25)) -> 3.444807726 | E38: Formula (5)
A39: Thermal transmittance (before corrections) | B39: U | C39: W/(m²K) | D39: =1/D38 -> 0.2902919639 | E39: Formula (1)
A40: Maximum relative error | B40: e | C40: % | D40: =100*(D25-D35)/(2*D38) -> 3.362019553 | E40: Formula (10)
A41: Correction for air gaps | B41: ΔU'' | C41: W/(m²K) | D41: =IF(Method_input!C19=0,0,IF(Method_input!C19=1,0.01,0.04)) -> 0.01 | E41: Table F.1
A42: Adjusted correction for air gaps | B42: ΔUg | C42: W/(m²K) | D42: =D41*(D8/D14)^2 -> 0.003099775452 | E42: Formula (F.3)
A43: Correction for mechanical fasteners | B43: ΔUf | C43: W/(m²K) | D43: =0.8*Method_input!F20*Method_input!E20*Method_input!D20*(D11/D14)^2/(Method_input!B12) -> 0.004533751135 | E43: Formula (F.4)
A44: Thermal transmittance (with corrections) | B44: U | C44: W/(m²K) | D44: =D39+D42+D43 -> 0.2979254904
A45: Thermal resistance of opaque component | B45: Rc;op | C45: m²K/W | D45: =(1/D44)-(Method_input!D3+Method_input!D10) -> 3.186543942 | E45: Formula (2)

Sheet Method_output
A1: THIS IS A MANDATORY SHEET Output of one step calculation shall be indicated here. Each cell in the column value shall be a reference to a single cell in the "Method_calculation" sheet. The macro will take the calculation step results and fill the values table in the "Output_series" sheet.
A4: Name | B4: Symbol | C4: Software name | D4: Unit | E4: Value | F4: Range | G4: Intended destination | H4: Varying | I4: Notes
A5: Thermal transmittance | B5: U | C5: U | D5: W/(m2K) | E5: =Method_calculation!D44 -> 0.2979254904 | F5: 0…∞ | G5: M2-2 | H5: No
A6: Thermal resistance of opaque component | B6: Rc;op | C6: R_c_op | D6: m²K/W | E6: =Method_calculation!D45 -> 3.186543942 | F6: 0…∞ | G6: M2-2 | H6: No

Sheet History
B2: Date | C2: Version scope | D2: Changes, notes
B4: 2014.02.24 | C4: First draft version (internal)
B5: 2014.05.21 | C5: Updated draft version (internal)
B6: 2015.06.15 | C6: ISO/TC163/SC 2 N document, for public distribution
